bitfinex/quotes_BTCUSD_20251113
["timestamp","ask_amount","ask_price","bid_price","bid_amount"]
[1763044887175,0.003,102390.0,102380.0,0.93908301]
[1763044887404,0.003,102390.0,102380.0,0.53913593]
[1763044887609,0.003,102390.0,102380.0,0.52185872]
[1763044887844,0.19833157,102390.0,102380.0,0.32650807]
[1763044888065,0.19833157,102390.0,102380.0,0.19885872]
[1763044888066,0.0434,102390.0,102380.0,0.19885872]
[1763044888284,0.24073157,102390.0,102380.0,0.19885872]
[1763044888499,0.0454,102390.0,102380.0,0.19885872]
[1763044888715,0.23873157,102390.0,102380.0,0.00350807]
[1763044888937,0.23873157,102390.0,102380.0,0.19885872]
[1763044889579,0.09816915,102400.0,102380.0,0.19885872]
[1763044889812,0.0434,102390.0,102380.0,0.19549033]
[1763044890277,0.19531391,102400.0,102390.0,0.19533157]
[1763044890492,0.19533157,102390.0,102380.0,0.00013968]
[1763044890920,0.21442157,102390.0,102380.0,0.00013968]
[1763044891188,0.25000157,102390.0,102380.0,0.00013968]
[1763044891604,0.21442157,102390.0,102380.0,0.00013968]
[1763044891810,0.25782157,102390.0,102380.0,0.00013968]
[1763044892231,0.29340157,102390.0,102380.0,0.00013968]
[1763044892667,0.25782157,102390.0,102380.0,0.00013968]
[1763044892874,0.21442157,102390.0,102380.0,0.00013968]
[1763044893085,0.25782157,102390.0,102380.0,0.00013968]
[1763044893290,0.29340157,102390.0,102380.0,0.00013968]
[1763044894356,0.61940157,102390.0,102380.0,0.00013968]
[1763044894561,0.27101601,102390.0,102380.0,0.00013968]
[1763044894771,0.31437601,102390.0,102380.0,0.00013968]
[1763044895210,0.31137601,102390.0,102380.0,0.00013968]
[1763044895641,0.31137601,102390.0,102380.0,0.19885872]
[1763044895642,0.06437444,102390.0,102380.0,0.19885872]
[1763044895852,0.24169157,102390.0,102380.0,0.00350807]
[1763044896075,0.27727157,102390.0,102380.0,0.00350807]
[1763044896287,0.29530165,102390.0,102380.0,0.00350807]
[1763044896925,0.61814561,102390.0,102380.0,0.00350807]
[1763044897144,0.61814561,102390.0,102330.0,0.0004]
[1763044897145,0.195427,102340.0,102330.0,0.0004]
[1763044897350,0.238787,102340.0,102330.0,0.00053972]
[1763044897807,0.19538948,102360.0,102340.0,0.19542051]
[1763044898051,0.195427,102340.0,102330.0,0.00053972]
[1763044898270,0.20515892,102360.0,102340.0,0.227377]
[1763044898480,0.0434,102350.0,102340.0,0.50680222]
[1763044898689,0.23880791,102350.0,102340.0,0.28809522]
[1763044898915,0.0434,102350.0,102340.0,0.204097]
[1763044899132,0.23880791,102350.0,102340.0,0.204097]
[1763044899547,0.0434,102350.0,102340.0,0.227377]
[1763044899978,0.23880791,102350.0,102340.0,0.00867]
[1763044900228,0.25689485,102350.0,102340.0,0.00867]
[1763044900439,0.25661676,102350.0,102330.0,0.21439585]
[1763044900666,0.06120885,102350.0,102340.0,0.195427]
[1763044900886,0.21549485,102350.0,102340.0,0.195427]
[1763044901096,0.25885485,102350.0,102330.0,0.22793582]
[1763044901306,0.25885485,102350.0,102340.0,0.218707]
[1763044901307,0.01808694,102350.0,102340.0,0.218707]
[1763044901721,0.25685485,102350.0,102340.0,0.218707]
[1763044902367,0.06144694,102350.0,102340.0,0.218707]
[1763044902594,0.25685485,102350.0,102340.0,0.218707]
[1763044902781,0.26593034,102350.0,102330.0,0.2318498]
[1763044902988,0.26593034,102350.0,102340.0,0.195427]
[1763044903196,0.26593034,102350.0,102340.0,0.196414]
[1763044903407,0.26793034,102350.0,102340.0,0.196414]
[1763044904271,0.26793034,102350.0,102340.0,0.000987]
[1763044904490,0.26793034,102350.0,102340.0,0.196414]
[1763044904716,0.02916243,102350.0,102340.0,0.219694]
[1763044904927,0.002,102350.0,102340.0,0.97947152]
[1763044905400,0.20509814,102390.0,102370.0,0.00976848]
[1763044905401,0.19533209,102390.0,102370.0,0.00976848]
[1763044905658,0.19533209,102390.0,102380.0,0.20205065]
[1763044905659,0.02727667,102390.0,102380.0,0.20205065]
[1763044905916,0.19535065,102380.0,102370.0,0.23799389]
[1763044906145,0.23869157,102390.0,102380.0,0.19535065]
[1763044906364,0.19535065,102380.0,102370.0,0.29415011]
[1763044906587,0.22265125,102380.0,102370.0,0.27300983]
[1763044906822,0.0273006,102380.0,102370.0,0.31556983]
[1763044907068,0.0706606,102380.0,102370.0,0.31556983]
[1763044907277,0.0706606,102380.0,102370.0,0.02629688]
[1763044907278,0.34539125,102380.0,102370.0,0.02629688]
[1763044907495,0.34539125,102380.0,102370.0,0.00013972]
[1763044907746,0.30981125,102380.0,102370.0,0.00013972]
[1763044908186,0.38880999,102380.0,102370.0,0.00013972]
[1763044908410,0.19538882,102360.0,102350.0,0.02615716]
[1763044908628,0.26604942,102360.0,102350.0,0.02615716]
[1763044908825,0.19540791,102350.0,102340.0,0.25645965]
[1763044909047,0.0273006,102350.0,102340.0,0.25659911]
[1763044909264,0.0706606,102350.0,102340.0,0.32531628]
[1763044909478,0.0706606,102350.0,102340.0,0.27300195]
[1763044909732,0.26606851,102350.0,102340.0,0.05629568]
[1763044909972,0.0706606,102350.0,102340.0,0.23044268]
[1763044910190,0.0706606,102350.0,102340.0,0.25272268]
[1763044910465,0.26606851,102350.0,102340.0,0.25272268]
[1763044910690,0.26606851,102350.0,102340.0,0.06224502]
[1763044910916,0.0273006,102350.0,102340.0,0.30023202]
[1763044911138,0.0706606,102350.0,102340.0,0.3002349]
[1763044911359,0.26606851,102350.0,102340.0,0.0845149]
[1763044911543,0.26606851,102350.0,102340.0,0.0632349]
[1763044912198,0.26606851,102350.0,102340.0,0.02835868]
[1763044912413,0.26606851,102350.0,102340.0,0.02735868]
[1763044912414,0.28515851,102350.0,102340.0,0.02735868]
[1763044912642,0.28715851,102350.0,102340.0,0.02735868]
[1763044912890,0.34744851,102350.0,102340.0,0.02735868]
[1763044913135,0.34744851,102350.0,102340.0,0.00112646]
[1763044913610,0.31186851,102350.0,102340.0,0.00112646]
[1763044914076,0.34744851,102350.0,102340.0,0.00112646]
[1763044914289,0.31186851,102350.0,102340.0,0.00112646]
[1763044914504,0.28715851,102350.0,102340.0,0.00112646]
[1763044915531,0.24179851,102350.0,102340.0,0.00112646]
[1763044915765,0.28811851,102350.0,102340.0,0.00112646]
[1763044917230,0.34840851,102350.0,102340.0,0.00112646]
[1763044917441,0.26950851,102350.0,102340.0,0.00112646]
[1763044917660,0.26898851,102350.0,102340.0,0.2930419]
[1763044917872,0.26898851,102350.0,102340.0,0.2753519]
[1763044918325,0.0735806,102350.0,102340.0,0.2753519]
[1763044918578,0.0273006,102350.0,102340.0,1.04662174]
[1763044918802,0.0182004,102350.0,102340.0,1.02944437]
[1763044919046,0.04328,102370.0,102350.0,0.21308061]
[1763044919271,0.24777069,102370.0,102360.0,0.19538882]
[1763044919502,0.24776736,102370.0,102360.0,0.22163571]
[1763044919728,0.20448736,102370.0,102360.0,0.02624689]
[1763044919964,0.20448736,102370.0,102360.0,0.22163571]
[1763044919965,0.24776736,102370.0,102360.0,0.22163571]
[1763044920190,0.19538882,102360.0,102340.0,0.25679556]
[1763044920437,0.27929791,102350.0,102340.0,0.06139169]
[1763044920700,0.32312554,102350.0,102340.0,0.00013946]
[1763044920929,0.28841554,102350.0,102340.0,0.00013946]
[1763044921181,0.26195574,102340.0,102320.0,0.02626933]
[1763044921410,0.19550342,102300.0,102290.0,0.02626933]
[1763044921862,0.04336,102300.0,102290.0,1.02204774]
[1763044922080,0.23886342,102300.0,102290.0,0.0349829]
[1763044922302,0.23886342,102300.0,102290.0,0.02627334]
[1763044922529,0.19552253,102290.0,102280.0,0.02627334]
[1763044922758,0.21302253,102290.0,102280.0,0.02673848]
[1763044922984,0.21302253,102290.0,102280.0,0.22228013]
[1763044923455,0.25636342,102300.0,102280.0,0.6709991]
[1763044923678,0.19552253,102290.0,102280.0,0.50173079]
[1763044923897,0.19552253,102290.0,102280.0,0.03318848]
[1763044924112,0.19552253,102290.0,102280.0,0.02673848]
[1763044924346,0.27657347,102300.0,102280.0,0.22228013]
[1763044924558,0.05547174,102300.0,102280.0,0.69727244]
[1763044924797,0.05547174,102300.0,102290.0,0.19552253]
[1763044925029,0.24797516,102300.0,102290.0,0.19774437]
[1763044925258,0.24797516,102300.0,102290.0,0.00222184]
[1763044925482,1.23892536,102300.0,102290.0,0.00222184]
[1763044926190,1.24192536,102300.0,102290.0,0.00222184]
[1763044927319,0.77338305,102300.0,102290.0,0.00222184]
[1763044927788,1.24192536,102300.0,102290.0,0.00222184]
[1763044929357,0.77338305,102300.0,102290.0,0.00222184]
[1763044929626,1.24892535,102300.0,102290.0,0.00222184]
[1763044929847,0.77038305,102300.0,102290.0,0.00222184]
[1763044930066,1.23892536,102300.0,102290.0,0.00222184]
[1763044930958,0.72696431,102300.0,102290.0,0.00222184]
[1763044931169,1.21364559,102300.0,102290.0,0.00222184]
[1763044931614,1.26206433,102300.0,102290.0,0.00222184]
[1763044932068,0.66406484,102290.0,102280.0,0.00046514]
[1763044932289,0.28071324,102290.0,102280.0,0.00046514]
[1763044932505,0.74925555,102290.0,102280.0,0.00046514]
[1763044933431,0.74923264,102290.0,102280.0,0.00046514]
[1763044933652,1.07523264,102290.0,102280.0,0.00046514]
[1763044933866,0.65010907,102290.0,102280.0,0.00046514]
[1763044934086,1.11865138,102290.0,102280.0,0.00046514]
[1763044934303,1.1619177,102290.0,102280.0,0.00046514]
[1763044936105,0.69337539,102290.0,102280.0,0.00046514]
[1763044936321,1.1619177,102290.0,102280.0,0.00046514]
[1763044937447,1.15472687,102290.0,102280.0,0.00046514]
[1763044937663,1.15472687,102290.0,102280.0,0.00071214]
[1763044938584,0.61990039,102280.0,102270.0,1e-08]
[1763044938809,0.23901776,102250.0,102240.0,0.0004]
[1763044939038,0.44899103,102250.0,102240.0,0.00053986]
[1763044939265,0.51861815,102240.0,102230.0,0.0004]
[1763044939491,0.60370153,102240.0,102230.0,0.0004]
[1763044940379,0.64711769,102240.0,102230.0,0.0004]
[1763044940613,0.32411769,102240.0,102230.0,0.0004]
[1763044941056,0.32611769,102240.0,102230.0,0.0004]
[1763044941552,0.28069895,102240.0,102230.0,0.0004]
[1763044941770,0.32411769,102240.0,102230.0,0.0004]
[1763044941984,0.32711769,102240.0,102230.0,0.0004]
[1763044943333,0.24944895,102240.0,102230.0,0.66457959]
[1763044943555,0.28369895,102240.0,102230.0,0.0004]
[1763044943768,0.32711769,102240.0,102230.0,0.0004]
[1763044944221,0.28369895,102240.0,102230.0,0.0004]
[1763044944454,0.02109311,102240.0,102230.0,0.66457959]
[1763044944685,0.003,102240.0,102230.0,0.71989959]
[1763044944933,0.003,102240.0,102230.0,0.72113528]
[1763044945129,0.003,102240.0,102230.0,0.69072528]
[1763044945353,0.003,102240.0,102230.0,1.04413528]
[1763044945803,0.19561815,102240.0,102230.0,0.793178]
[1763044946025,0.19559935,102250.0,102230.0,0.98881215]
[1763044946304,0.19561815,102240.0,102230.0,0.98757646]
[1763044946522,0.19561815,102240.0,102230.0,0.46894231]
[1763044946742,0.21368622,102240.0,102230.0,0.46894231]
[1763044946965,0.27162622,102240.0,102230.0,0.00123569]
[1763044947157,0.45849411,102240.0,102230.0,0.00123569]
[1763044947311,0.46753295,102240.0,102230.0,0.00123569]
[1763044947734,0.19569471,102200.0,102190.0,0.06125624]
[1763044947943,0.23666471,102200.0,102190.0,0.02641335]
[1763044948165,0.27091471,102200.0,102190.0,0.19585387]
[1763044948367,0.23666471,102200.0,102190.0,0.00014001]
[1763044948569,0.3324109,102200.0,102190.0,0.00014001]
[1763044948845,0.25474216,102200.0,102190.0,0.00014001]
[1763044949017,0.23105216,102200.0,102190.0,0.19585387]
[1763044949195,0.03535745,102200.0,102190.0,0.66439618]
[1763044949395,0.03535745,102200.0,102190.0,0.00014001]
[1763044949396,0.29803844,102200.0,102190.0,0.00014001]
[1763044951313,0.30103844,102200.0,102190.0,0.00014001]
[1763044951538,0.34445718,102200.0,102190.0,0.00014001]
[1763044951762,0.81299949,102200.0,102190.0,0.00014001]
[1763044951989,0.34445718,102200.0,102190.0,0.00014001]
[1763044952215,0.30103844,102200.0,102190.0,0.00014001]
[1763044952438,0.10534373,102200.0,102190.0,0.66439618]
[1763044952677,0.02107745,102200.0,102190.0,0.69818618]
[1763044952898,0.003,102200.0,102190.0,0.72923618]
[1763044953125,0.003,102200.0,102190.0,0.69818618]
[1763044953345,0.23895587,102210.0,102200.0,0.19569471]
[1763044953556,0.25705581,102210.0,102200.0,0.19569471]
[1763044953986,0.06137994,102210.0,102200.0,0.66497883]
[1763044954203,0.2245493,102230.0,102220.0,0.19565642]
[1763044954439,0.082816,102230.0,102210.0,0.66420117]
[1763044954666,0.00999999,102270.0,102250.0,0.19559902]
[1763044954899,0.004,102290.0,102280.0,0.19554165]
[1763044955157,0.004,102290.0,102280.0,1.46207627]
[1763044955375,0.004,102290.0,102280.0,1.55438251]
[1763044955815,0.004,102290.0,102280.0,1.52810917]
[1763044956045,0.00413934,102290.0,102280.0,1.52810917]
[1763044956273,0.00413934,102290.0,102280.0,1.58058158]
[1763044956524,0.00413934,102290.0,102280.0,1.52810917]
[1763044956964,0.00413934,102290.0,102280.0,1.55425769]
[1763044957182,0.00413934,102290.0,102280.0,1.54559868]
[1763044957404,1e-08,102300.0,102290.0,1.53007589]
[1763044957628,1e-08,102300.0,102290.0,1.64340907]
[1763044957853,1e-08,102300.0,102290.0,1.07907843]
[1763044958519,1e-08,102300.0,102290.0,1.04424384]
[1763044958741,1e-08,102300.0,102290.0,1.07907843]
[1763044958953,1e-08,102300.0,102290.0,1.57374202]
[1763044959373,1e-08,102300.0,102290.0,1.61716076]
[1763044959616,1e-08,102300.0,102290.0,1.58232617]
[1763044959839,1e-08,102300.0,102290.0,1.58432617]
[1763044960296,1e-08,102300.0,102290.0,1.15056473]
[1763044960747,1e-08,102300.0,102290.0,1.08096174]
[1763044960968,1e-08,102300.0,102290.0,1.04618087]
[1763044962334,1e-08,102300.0,102290.0,1.06932087]
[1763044962551,0.19550343,102300.0,102290.0,0.47054231]
[1763044962773,0.25004343,102300.0,102290.0,0.002]
[1763044962991,0.22702343,102300.0,102290.0,0.002]
[1763044963213,0.27044217,102300.0,102290.0,0.002]
[1763044963449,0.19554165,102280.0,102270.0,0.46854231]
[1763044963668,0.25795165,102280.0,102270.0,0.46868165]
[1763044963882,0.25795165,102280.0,102270.0,0.00013934]
[1763044964101,0.19561815,102240.0,102230.0,0.0608469]
[1763044964353,0.19563728,102230.0,102220.0,0.00024722]
[1763044964577,1.02369959,102230.0,102220.0,0.00024722]
[1763044964815,0.03652,102230.0,102220.0,0.00024722]
[1763044965037,0.19563728,102230.0,102220.0,0.00024722]
[1763044965262,0.51233256,102230.0,102220.0,0.00024722]
[1763044965481,0.55579221,102230.0,102220.0,0.00024722]
[1763044965697,0.59921095,102230.0,102220.0,0.00024722]
[1763044967242,0.60321095,102230.0,102220.0,0.00024722]
[1763044967477,0.62124153,102230.0,102220.0,0.00024722]
[1763044967937,0.24305693,102230.0,102220.0,0.00024722]
[1763044968213,0.27957693,102230.0,102220.0,0.00024722]
[1763044968435,0.55975221,102230.0,102220.0,0.00024722]
[1763044969777,0.24309693,102230.0,102220.0,0.00024722]
[1763044969991,0.27961693,102230.0,102220.0,0.00024722]
[1763044970262,0.55979221,102230.0,102220.0,0.00024722]
[1763044970489,0.57892221,102230.0,102220.0,0.00024722]
[1763044970695,0.29874693,102230.0,102220.0,0.00024722]
[1763044972350,0.57892221,102230.0,102220.0,0.00024722]
[1763044972561,0.62234095,102230.0,102220.0,0.00024722]
[1763044972980,0.64037349,102230.0,102220.0,0.00024722]
[1763044973397,0.36019821,102230.0,102220.0,0.00024722]
[1763044973611,0.64037349,102230.0,102220.0,0.00024722]
[1763044974890,0.66339349,102230.0,102220.0,0.00024722]
[1763044976595,0.62007349,102230.0,102220.0,0.00024722]
[1763044976843,0.66335349,102230.0,102220.0,0.00024722]
[1763044977468,0.38317821,102230.0,102220.0,0.00024722]
[1763044977678,0.66335349,102230.0,102220.0,0.00024722]
[1763044978103,0.98635349,102230.0,102220.0,0.00024722]
[1763044978315,0.19571386,102190.0,102180.0,0.0004]
[1763044978526,0.28114386,102190.0,102180.0,0.0004]
[1763044978763,0.31766386,102190.0,102180.0,0.0004]
[1763044978969,0.31766386,102190.0,102180.0,0.00353061]
[1763044979625,0.31780343,102190.0,102180.0,0.00353061]
[1763044980263,0.25822343,102190.0,102180.0,0.47943891]
[1763044980473,0.25822343,102190.0,102180.0,0.19926363]
[1763044980704,0.26022343,102190.0,102180.0,0.19926363]
[1763044980919,0.00213957,102190.0,102180.0,0.19926363]
[1763044981130,0.04537957,102190.0,102180.0,0.19926363]
[1763044981342,0.29826343,102190.0,102180.0,0.00353061]
[1763044981546,0.57843871,102190.0,102180.0,0.00353061]
[1763044981759,0.62185745,102190.0,102180.0,0.00353061]
[1763044981996,0.34168217,102190.0,102180.0,0.00353061]
[1763044982203,0.62185745,102190.0,102180.0,0.00353061]
[1763044982420,0.29844217,102190.0,102180.0,0.00353061]
[1763044982640,0.29830343,102190.0,102180.0,0.00353061]
[1763044983290,0.29830343,102190.0,102180.0,0.19926363]
[1763044983291,0.22136343,102190.0,102180.0,0.19926363]
[1763044983502,0.00213957,102190.0,102180.0,0.81198419]
[1763044984387,0.00013957,102190.0,102180.0,0.81198419]
[1763044984826,0.00013957,102190.0,102180.0,1.13498419]
[1763044986326,0.23913343,102190.0,102180.0,0.50365891]
[1763044986555,0.23913343,102190.0,102180.0,0.48243891]
[1763044986766,0.04341957,102190.0,102180.0,0.48243891]
[1763044986965,0.23913343,102190.0,102180.0,0.48243891]
[1763044987259,0.23913343,102190.0,102180.0,0.00353061]
[1763044987473,0.29749343,102190.0,102180.0,0.00353061]
[1763044987893,0.29649343,102190.0,102180.0,0.00353061]
[1763044989361,0.57666871,102190.0,102180.0,0.00353061]
[1763044989576,0.19585343,102190.0,102180.0,0.47943891]
[1763044989784,0.23913343,102190.0,102180.0,0.00353061]
[1763044990189,0.24013343,102190.0,102180.0,0.00353061]
[1763044990439,0.29749343,102190.0,102180.0,0.00353061]
[1763044991298,0.32467127,102190.0,102180.0,0.00353061]
[1763044991517,0.60484655,102190.0,102180.0,0.00353061]
[1763044991721,0.32467127,102190.0,102180.0,0.00353061]
[1763044993215,0.60484655,102190.0,102180.0,0.00353061]
[1763044993424,0.60439127,102190.0,102180.0,0.00353061]
[1763044993633,0.64767127,102190.0,102180.0,0.00353061]
[1763044993850,0.92784655,102190.0,102180.0,0.00353061]
[1763044993997,0.64767127,102190.0,102180.0,0.00353061]
[1763044994198,0.92784655,102190.0,102180.0,0.00353061]
[1763044994432,0.64667127,102190.0,102180.0,0.00353061]
[1763044994629,0.64867127,102190.0,102180.0,0.00353061]
[1763044996065,0.97226529,102190.0,102180.0,0.00353061]
[1763044996533,0.69209001,102190.0,102180.0,0.00353061]
[1763044996746,0.97226529,102190.0,102180.0,0.00353061]
[1763044997188,0.84234619,102170.0,102160.0,0.0004]
[1763044997420,0.97784403,102170.0,102160.0,1e-08]
[1763044997630,0.97784403,102170.0,102140.0,0.0004]
[1763044997631,0.1957905,102150.0,102140.0,0.0004]
[1763044997837,0.56963362,102150.0,102140.0,0.0004]
[1763044998060,0.32360834,102150.0,102140.0,0.0004]
[1763044998525,0.60378362,102150.0,102140.0,0.0004]
[1763044998793,1.34854679,102150.0,102140.0,0.0004]
[1763044999031,1.34854679,102150.0,102140.0,0.00086675]
[1763044999253,1.06837151,102150.0,102140.0,0.00086675]
[1763044999470,1.47606678,102150.0,102140.0,0.00086675]
[1763044999680,0.92571621,102150.0,102140.0,0.00086675]
[1763044999892,1.1958915,102150.0,102140.0,0.00086675]
[1763045000156,1.48606677,102150.0,102140.0,1e-08]
[1763045000374,0.51882884,102130.0,102120.0,0.00048]
[1763045000615,0.96377069,102130.0,102120.0,0.00048]
[1763045000830,1.27809597,102130.0,102120.0,0.00048]
[1763045001042,0.19589046,102100.0,102070.0,0.23212148]
[1763045001271,0.06096,102090.0,102080.0,0.19592457]
[1763045001492,0.21913476,102080.0,102060.0,0.00489655]
[1763045001723,0.06662874,102070.0,102060.0,0.00536339]
[1763045001965,0.07055328,102070.0,102060.0,0.00536339]
[1763045002175,0.0434,102070.0,102060.0,0.48150182]
[1763045002385,0.0434,102080.0,102070.0,0.19593861]
[1763045002606,0.0434,102080.0,102070.0,0.19594396]
[1763045002821,0.0434,102080.0,102060.0,0.48150093]
[1763045003051,0.25330396,102070.0,102060.0,0.00536339]
[1763045003495,0.25430396,102070.0,102060.0,0.00833543]
[1763045003923,0.25330396,102070.0,102060.0,0.00833543]
[1763045004134,0.91794757,102070.0,102060.0,0.00833543]
[1763045004343,0.92697092,102070.0,102060.0,0.00833543]
[1763045004583,1.29209306,102070.0,102010.0,0.00626]
[1763045004792,0.19602183,102030.0,102010.0,0.28657536]
[1763045004999,0.23942077,102030.0,102020.0,0.28017528]
[1763045005201,0.0434,102030.0,102020.0,0.28017528]
[1763045005410,0.0434,102030.0,102010.0,0.23524797]
[1763045005411,0.23942338,102030.0,102010.0,0.23524797]
[1763045005623,0.23942338,102030.0,102020.0,0.28017528]
[1763045005842,0.19603999,102020.0,102010.0,0.03919008]
[1763045006052,0.19603999,102020.0,102010.0,0.28657536]
[1763045006319,0.20487999,102020.0,102010.0,0.00014008]
[1763045006532,0.2665949,102020.0,102010.0,0.00014008]
[1763045006747,0.26127987,102020.0,102010.0,0.00014008]
[1763045006962,0.20487999,102020.0,102010.0,0.00014008]
[1763045007173,0.20487999,102020.0,102010.0,0.00414008]
[1763045007376,0.56262401,102020.0,102010.0,0.00414008]
[1763045007630,1.16579929,102020.0,102010.0,0.00414008]
[1763045007840,0.94017539,102020.0,102010.0,0.00414008]
[1763045008253,1.1933642,102020.0,102010.0,0.00414008]
[1763045008452,1.1933642,102020.0,102010.0,0.00014008]
[1763045008666,0.88562401,102020.0,102010.0,0.00014008]
[1763045009075,0.60544873,102020.0,102010.0,0.00014008]
[1763045009508,0.19616015,101960.0,101930.0,0.02984974]
[1763045009713,0.51973369,101960.0,101930.0,0.47725513]
[1763045009921,0.28739841,101960.0,101940.0,0.19619354]
[1763045010151,0.08689874,101970.0,101950.0,0.28017528]
[1763045010368,0.62869689,101990.0,101960.0,0.4861372]
[1763045010584,0.42270874,101990.0,101970.0,0.19613505]
[1763045010808,0.6188089,101990.0,101970.0,0.19613604]
[1763045011021,0.2958069,101990.0,101970.0,0.47631132]
[1763045011245,0.29580816,101990.0,101970.0,0.19613604]
[1763045011455,0.19611688,101980.0,101960.0,0.19615408]
[1763045011665,0.19613611,101970.0,101950.0,0.82588828]
[1763045011887,0.23114688,101980.0,101960.0,0.0004673]
[1763045012117,0.23114688,101980.0,101960.0,0.19662259]
[1763045012348,0.19611688,101980.0,101960.0,0.19662259]
[1763045012572,0.19613611,101970.0,101960.0,0.47679787]
[1763045012842,0.19611688,101980.0,101960.0,0.47679787]
[1763045013066,0.19609838,101990.0,101980.0,0.28017528]
[1763045013282,0.19811688,101980.0,101960.0,0.0004673]
[1763045013506,0.19613611,101970.0,101960.0,0.28064258]
[1763045013725,0.19811688,101980.0,101960.0,0.28064258]
[1763045013913,0.19811688,101980.0,101960.0,0.47678308]
[1763045014129,0.002,101980.0,101970.0,0.19613611]
[1763045014386,0.002,101980.0,101970.0,0.47631139]
[1763045014593,0.09816915,102000.0,101980.0,0.19611233]
[1763045014813,0.29424758,102000.0,101980.0,0.52871761]
[1763045015022,0.09816915,102000.0,101990.0,0.19609765]
[1763045015223,0.09816915,102000.0,101990.0,0.47627293]
[1763045015427,0.09816915,102000.0,101990.0,0.19609765]
[1763045015636,0.19607843,102000.0,101980.0,0.52871491]
[1763045015843,0.002,102000.0,101990.0,0.47627293]
[1763045016050,0.002,102000.0,101990.0,0.51197293]
[1763045016261,0.20497177,102020.0,102000.0,0.1960671]
[1763045016471,0.19603999,102020.0,102010.0,0.1960592]
[1763045016891,0.19607439,102030.0,102010.0,0.47623448]
[1763045017508,0.19607439,102030.0,102010.0,0.49296448]
[1763045017720,0.31404305,102040.0,102020.0,0.19603999]
[1763045017721,0.30424298,102040.0,102020.0,0.19603999]
[1763045017937,0.30424298,102040.0,102030.0,0.28017528]
[1763045018148,0.30424298,102040.0,102020.0,0.51191419]
[1763045018353,0.21583097,102050.0,102030.0,0.47619605]
[1763045018565,0.19600156,102040.0,102030.0,0.51189605]
[1763045018799,0.19600156,102040.0,102030.0,0.28017528]
[1763045019015,0.19600156,102040.0,102020.0,0.47621269]
[1763045019188,0.003,102040.0,102030.0,0.19602077]
[1763045019412,0.19900156,102040.0,102030.0,0.28017528]
[1763045019620,0.19602077,102030.0,102020.0,0.31587528]
[1763045019844,0.19602077,102030.0,102020.0,0.51191527]
[1763045020022,0.19600156,102040.0,102020.0,0.51191527]
[1763045020222,0.19600156,102040.0,102020.0,0.51191372]
[1763045020659,0.19602077,102030.0,102020.0,0.28017528]
[1763045020869,0.19603999,102020.0,102010.0,0.61990528]
[1763045021094,0.19603999,102020.0,102010.0,0.81596448]
[1763045021300,0.19603999,102020.0,102010.0,0.61990528]
[1763045021497,0.19603999,102020.0,102010.0,0.85166448]
[1763045021711,0.09816915,102040.0,102020.0,0.19603999]
[1763045021918,0.19602077,102030.0,102020.0,0.23173999]
[1763045022135,0.09816915,102040.0,102030.0,0.19602077]
[1763045022339,0.09816915,102040.0,102030.0,0.53355605]
[1763045022545,0.19600156,102040.0,102030.0,0.33753528]
[1763045022762,0.19600156,102040.0,102030.0,0.49785605]
[1763045022984,0.19602077,102030.0,102010.0,0.25929216]
[1763045023197,0.19602077,102030.0,102020.0,0.19603999]
[1763045023613,0.19602077,102030.0,102010.0,0.52966448]
[1763045023735,0.19602077,102030.0,102020.0,0.47621527]
[1763045023945,0.19602077,102030.0,102020.0,0.28017528]
[1763045024558,0.19602077,102030.0,102010.0,0.52866448]
[1763045024763,0.19602077,102030.0,102010.0,0.52866413]
[1763045024960,0.25603999,102020.0,102010.0,0.71992165]
[1763045025172,0.00013949,102050.0,102020.0,0.33280199]
[1763045025411,0.00013949,102050.0,102040.0,0.83282245]
[1763045025615,0.00013949,102050.0,102040.0,0.01673]
[1763045025840,0.19600156,102040.0,102030.0,0.01673]
[1763045026044,0.19600156,102040.0,102020.0,0.66746837]
[1763045026248,0.19600156,102040.0,102020.0,0.47143245]
[1763045026451,0.19600156,102040.0,102020.0,0.6674718]
[1763045026650,0.19600156,102040.0,102030.0,0.47143245]
[1763045026827,0.19600156,102040.0,102030.0,0.19602077]
[1763045026995,0.19600156,102040.0,102020.0,0.7031718]
[1763045027213,0.19602077,102030.0,102020.0,0.47143245]
[1763045027430,0.19603999,102020.0,102010.0,0.2127892]
[1763045027639,0.19603999,102020.0,102010.0,0.01673]
[1763045027868,0.19602077,102030.0,102010.0,0.1960592]
[1763045028066,0.19603999,102020.0,102010.0,0.1960592]
[1763045028270,0.19603999,102020.0,102000.0,0.71300259]
[1763045028495,0.2141049,102020.0,102010.0,0.1960592]
[1763045028901,0.2229449,102020.0,102000.0,0.0357]
[1763045029128,0.2229449,102020.0,102000.0,0.70321055]
[1763045029324,0.2229449,102020.0,101990.0,0.54563253]
[1763045029325,0.19607843,102000.0,101990.0,1.01706498]
[1763045029525,0.19603999,102020.0,102000.0,0.23177843]
[1763045029732,0.21412738,102020.0,102000.0,0.70321088]
[1763045030152,0.1960592,102010.0,102000.0,0.70321088]
[1763045030350,0.21414659,102010.0,102000.0,0.70421088]
[1763045030547,0.01808739,102010.0,102000.0,0.72587088]
[1763045030757,0.21414904,102020.0,102010.0,0.1960592]
[1763045030958,0.1960592,102010.0,102000.0,0.70321088]
[1763045031162,0.21416898,102010.0,102000.0,0.50713245]
[1763045031378,0.21416898,102010.0,102000.0,0.70321088]
[1763045031591,0.21416898,102010.0,101990.0,0.48816245]
[1763045031813,0.21416898,102010.0,102000.0,0.72487088]
[1763045031814,0.01810978,102010.0,102000.0,0.72487088]
[1763045032043,0.2058218,102030.0,102010.0,0.1960592]
[1763045032280,0.02719702,102030.0,102020.0,0.19603999]
[1763045032484,0.22321779,102030.0,102020.0,0.72582409]
[1763045032701,0.02719702,102030.0,102020.0,0.72582409]
[1763045032953,0.01813135,102030.0,102020.0,0.72582409]
[1763045033580,0.21415212,102030.0,102020.0,0.05835165]
[1763045033784,0.21415212,102030.0,102020.0,0.25439164]
[1763045034014,0.01813135,102030.0,102020.0,0.72582409]
[1763045034449,0.01913135,102030.0,102020.0,1.04882409]
[1763045035616,0.07913135,102030.0,102020.0,1.04882409]
[1763045035825,0.01913135,102030.0,102020.0,1.04882409]
[1763045036522,0.01813135,102030.0,102020.0,1.04882409]
[1763045036978,0.19605526,102070.0,102050.0,0.19597749]
[1763045037196,0.19596315,102060.0,102050.0,0.68906994]
[1763045037410,0.22319439,102060.0,102050.0,0.02166]
[1763045038080,0.19598236,102050.0,102040.0,0.05243]
[1763045038275,0.21413652,102050.0,102040.0,0.24843156]
[1763045038494,0.21413652,102050.0,102040.0,0.27009156]
[1763045038704,0.01815416,102050.0,102040.0,0.74152401]
[1763045038909,0.01815416,102050.0,102040.0,0.54552245]
[1763045039111,0.21413652,102050.0,102040.0,0.03839]
[1763045039960,0.21413652,102050.0,102040.0,0.01673]
[1763045040166,0.19602629,102030.0,102010.0,0.73140781]
[1763045040382,0.21418045,102030.0,102010.0,0.73140781]
[1763045040616,0.21418045,102030.0,102010.0,0.25997536]
[1763045040827,0.19603999,102020.0,102010.0,0.05412]